{"text_format":"1","workbook":"xlsx","n_sheets":3,"sheets":["Produktionsanlæg","Distributionsanlæg","Fællesfunktionsanlæg"],"not_rendered":{"charts":0,"images":0,"macros":1,"external_links":0,"defined_names":2,"comments":0,"pivot_tables":0},"unopened":[],"bounds":{"document_bytes":16777216,"sheet_cells":100000,"rows_first":2000,"rows_last":500,"rows_between":2000,"halvings":0,"cell_chars":16384,"cell_head_chars":4096},"cells_cut":0,"cells_raw":0,"read":"whole","date_system":"1900"}

{"sheet":"Produktionsanlæg","index":0,"n_rows":552,"n_cols":9,"rows_kept":552,"cut":false,"hidden":false,"merged":[[0,0,1,0],[0,1,1,1],[0,2,1,2],[0,3,1,3],[0,8,1,8],[0,4,1,4],[0,5,1,5],[0,6,1,6],[0,7,1,7]]}
["Produktionsanlæg","Enhed","Standard-levetid","Samlet mængde per 31/12-2022","Samlet mængde per 31/12-2023","Samlet mængde per 31/12-2024","Afvigelse 2022-2023","Afvigelse 2023-2024","Bemærkninger"]
[]
["Renseanlæg 1",null,null,null,null,null,{"$f":"IF(D3=\"\",IF(E3>0,\"Ny data\",IF(E3=\"\",\"\",0)),IF(D3=0,IF(E3=0,0,\"Ny data\"),(E3-D3)/D3))","v":""},{"$f":"IF(E3=\"\",IF(F3>0,\"Ny data\",IF(F3=\"\",\"\",0)),IF(E3=0,IF(F3=0,0,\"Ny data\"),(F3-E3)/E3))","v":""}]
["Mindre renseanlæg",null,null,null,null,null,"",""]
["Mindre renseanlæg < 5.000 PE","PE",40,0,0,0,0,0]
["Renseanlæg >= 5.000 PE, Vandbehandling",null,null,null,null,null,"",""]
["Indløb med riste, Konstruktioner","PE",60,10000,10000,10000,0,0]
["Indløb med riste, Mek/EL","PE",20,10000,10000,10000,0,0]
["Indløb med riste, SRO","PE",10,10000,10000,10000,0,0]
["Sand- og fedtfang, Kontruktioner","PE",60,10000,10000,10000,0,0]
["Sand- og fedtfang, Mek/EL","PE",20,10000,10000,10000,0,0]
["Sand- og fedtfang, SRO","PE",10,10000,10000,10000,0,0]
["Forklaring, Konstruktioner","PE",60,0,0,0,0,0]
["Forklaring, Mek/EL","PE",20,0,0,0,0,0]
["Forklaring, SRO","PE",10,0,0,0,0,0]
["Beluftningstanke, Konstruktioner","PE",60,8700,8700,8700,0,0]
["Beluftningstanke, Mek/EL","PE",20,8700,8700,8700,0,0]
["Beluftningstanke, SRO","PE",10,8700,8700,8700,0,0]
["Efterklaringstanke, Konstruktioner","PE",60,10000,10000,10000,0,0]
["Efterklaringstanke, Mek/El","PE",20,10000,10000,10000,0,0]
["Efterklaringstanke, SRO","PE",10,10000,10000,10000,0,0]
["Efterbehandlingsanlæg (sandfilter), Konstruktioner","PE",60,0,0,0,0,0]
["Efterbehandlingsanlæg (sandfilter), Mek/EL","PE",20,0,0,0,0,0]
["Efterbehandlingsanlæg (sandfilter), SRO","PE",10,0,0,0,0,0]
["Renseanlæg >= 5.000 PE, Slambehandling",null,null,null,null,null,"",""]
["Forafvanding, slam, Konstruktion","PE",60,0,0,0,0,0]
["Forafvanding, slam, Mek/EL","PE",20,0,0,0,0,0]
["Forafvanding, slam, SRO","PE",10,0,0,0,0,0]
["Rådnetanke, slam, Konstruktioner","PE",60,0,0,0,0,0]
["Rådnetanke, slam, Mek/EL","PE",20,0,0,0,0,0]
["Rådnetanke, slam, SRO","PE",10,0,0,0,0,0]
["Gasdisponering, Konstruktioner","PE",60,0,0,0,0,0]
["Gasdisponering, Mek/EL","PE",20,0,0,0,0,0]
["Gasdisponering, SRO","PE",10,0,0,0,0,0]
["Gasdisponering - elproduktionsanlæg, Konstruktioner","PE",60,0,0,0,0,0]
["Gasdisponering - elproduktionsanlæg, Mek/EL","PE",20,0,0,0,0,0]
["Gasdisponering - elproduktionsanlæg, SRO","PE",10,0,0,0,0,0]
["Gasrensning - Aktivt kulfilter","m3/t",15,0,0,0,0,0]
["Gasrensning - Biologisk skrubber","m3/t",15,0,0,0,0,0]
["Opgraderingsanlæg - Membran","m3/t",15,0,0,0,0,0]
["Varmeproduktionsanlæg","m3/t",15,0,0,0,0,0]
["Slutafvanding, slam - lavteknologisk (slambede), Konstruktioner","PE",60,0,0,0,0,0]
["Slutafvanding, slam - lavteknologisk (slambede), Mek/EL","PE",20,0,0,0,0,0]
["Slutafvanding, slam - lavteknologisk (slambede), SRO","PE",10,0,0,0,0,0]
["Slutafvanding, slam - højteknologisk (centrifuger), Konstruktioner","PE",60,10000,10000,10000,0,0]
["Slutafvanding, slam - højteknologisk (centrifuger), Mek/El","PE",20,10000,10000,10000,0,0]
["Slutafvanding, slam - højteknologisk (centrifuger), SRO","PE",10,10000,10000,10000,0,0]
["Renseanlæg >= 5.000 PE, Slamdisponering",null,null,null,null,null,"",""]
["Slutdisponering, slam - lavteknologisk (slammineralisering), Konstruktioner","PE",60,0,0,0,0,0]
["Slutdisponering, slam - lavteknologisk (slammineralisering), Mek/EL","PE",20,0,0,0,0,0]
["Slutdisponering, slam - lavteknologisk (slammineralisering), SRO","PE",10,0,0,0,0,0]
["Slutdisponering, slam - højteknologisk (slamtørring), Konstruktioner","PE",60,0,0,0,0,0]
["Slutdisponering, slam - højteknologisk (slamtørring), Mek/EL","PE",20,0,0,0,0,0]
["Slutdisponering, slam - højteknologisk (slamtørring), SRO","PE",10,0,0,0,0,0]
["Slutdisponering, slam - højteknologisk (slamtørring og -forbrænding), Konstruktioner","PE",60,0,0,0,0,0]
["Slutdisponering, slam - højteknologisk (slamtørring og -forbrænding), Mek/EL","PE",20,0,0,0,0,0]
["Slutdisponering, slam - højteknologisk (slamtørring og -forbrænding), SRO","PE",10,0,0,0,0,0]
["Renseanlæg 2",null,null,null,null,null,"",""]
["Mindre renseanlæg",null,null,null,null,null,"",""]
["Mindre renseanlæg < 5.000 PE","PE",40,0,0,0,0,0]
["Renseanlæg >= 5.000 PE, Vandbehandling",null,null,null,null,null,"",""]
["Indløb med riste, Konstruktioner","PE",60,21560,21560,21560,0,0]
["Indløb med riste, Mek/EL","PE",20,21560,21560,21560,0,0]
["Indløb med riste, SRO","PE",10,21560,21560,21560,0,0]
["Sand- og fedtfang, Kontruktioner","PE",60,21560,21560,21560,0,0]
["Sand- og fedtfang, Mek/EL","PE",20,21560,21560,21560,0,0]
["Sand- og fedtfang, SRO","PE",10,21560,21560,21560,{"$f":"IF(D67=\"\",IF(E67>0,\"Ny data\",IF(E67=\"\",\"\",0)),IF(D67=0,IF(E67=0,0,\"Ny data\"),(E67-D67)/D67))","v":0},{"$f":"IF(E67=\"\",IF(F67>0,\"Ny data\",IF(F67=\"\",\"\",0)),IF(E67=0,IF(F67=0,0,\"Ny data\"),(F67-E67)/E67))","v":0}]
["Forklaring, Konstruktioner","PE",60,0,0,0,0,0]
["Forklaring, Mek/EL","PE",20,0,0,0,0,0]
["Forklaring, SRO","PE",10,0,0,0,0,0]
["Beluftningstanke, Konstruktioner","PE",60,28500,28500,28500,0,0]
["Beluftningstanke, Mek/EL","PE",20,28000,28000,28000,0,0]
["Beluftningstanke, SRO","PE",10,28500,28500,28500,0,0]
["Efterklaringstanke, Konstruktioner","PE",60,25872,25872,25872,0,0]
["Efterklaringstanke, Mek/El","PE",20,25872,25872,25872,0,0]
["Efterklaringstanke, SRO","PE",10,25872,25872,25872,0,0]
["Efterbehandlingsanlæg (sandfilter), Konstruktioner","PE",60,0,0,0,0,0]
["Efterbehandlingsanlæg (sandfilter), Mek/EL","PE",20,0,0,0,0,0]
["Efterbehandlingsanlæg (sandfilter), SRO","PE",10,0,0,0,0,0]
["Renseanlæg >= 5.000 PE, Slambehandling",null,null,null,null,null,"",""]
["Forafvanding, slam, Konstruktion","PE",60,0,0,0,0,0]
["Forafvanding, slam, Mek/EL","PE",20,0,0,0,0,0]
["Forafvanding, slam, SRO","PE",10,0,0,0,0,0]
["Rådnetanke, slam, Konstruktioner","PE",60,0,0,0,0,0]
["Rådnetanke, slam, Mek/EL","PE",20,0,0,0,0,0]
["Rådnetanke, slam, SRO","PE",10,0,0,0,0,0]
["Gasdisponering, Konstruktioner","PE",60,0,0,0,0,0]
["Gasdisponering, Mek/EL","PE",20,0,0,0,0,0]
["Gasdisponering, SRO","PE",10,0,0,0,0,0]
["Gasdisponering - elproduktionsanlæg, Konstruktioner","PE",60,0,0,0,0,0]
["Gasdisponering - elproduktionsanlæg, Mek/EL","PE",20,0,0,0,0,0]
["Gasdisponering - elproduktionsanlæg, SRO","PE",10,0,0,0,0,0]
["Gasrensning - Aktivt kulfilter","m3/t",15,0,0,0,0,0]
["Gasrensning - Biologisk skrubber","m3/t",15,0,0,0,0,0]
["Opgraderingsanlæg - Membran","m3/t",15,0,0,0,0,0]
["Varmeproduktionsanlæg","m3/t",15,0,0,0,0,0]
["Slutafvanding, slam - lavteknologisk (slambede), Konstruktioner","PE",60,0,0,0,0,0]
["Slutafvanding, slam - lavteknologisk (slambede), Mek/EL","PE",20,0,0,0,0,0]
["Slutafvanding, slam - lavteknologisk (slambede), SRO","PE",10,0,0,0,0,0]
["Slutafvanding, slam - højteknologisk (centrifuger), Konstruktioner","PE",60,23100,23100,23100,0,0]
["Slutafvanding, slam - højteknologisk (centrifuger), Mek/El","PE",20,23100,23100,23100,0,0]
["Slutafvanding, slam - højteknologisk (centrifuger), SRO","PE",10,23100,23100,23100,0,0]
["Renseanlæg >= 5.000 PE, Slamdisponering",null,null,null,null,null,"",""]
["Slutdisponering, slam - lavteknologisk (slammineralisering), Konstruktioner","PE",60,25000,25000,25000,0,0]
["Slutdisponering, slam - lavteknologisk (slammineralisering), Mek/EL","PE",20,25000,25000,25000,0,0]
["Slutdisponering, slam - lavteknologisk (slammineralisering), SRO","PE",10,25000,25000,25000,0,0]
["Slutdisponering, slam - højteknologisk (slamtørring), Konstruktioner","PE",60,0,0,0,0,0]
["Slutdisponering, slam - højteknologisk (slamtørring), Mek/EL","PE",20,0,0,0,0,0]
["Slutdisponering, slam - højteknologisk (slamtørring), SRO","PE",10,0,0,0,0,0]
["Slutdisponering, slam - højteknologisk (slamtørring og -forbrænding), Konstruktioner","PE",60,0,0,0,0,0]
["Slutdisponering, slam - højteknologisk (slamtørring og -forbrænding), Mek/EL","PE",20,0,0,0,0,0]
["Slutdisponering, slam - højteknologisk (slamtørring og -forbrænding), SRO","PE",10,0,0,0,0,0]
["Renseanlæg 3",null,null,null,null,null,"",""]
["Mindre renseanlæg",null,null,null,null,null,"",""]
["Mindre renseanlæg < 5.000 PE","PE",40,0,0,0,0,0]
["Renseanlæg >= 5.000 PE, Vandbehandling",null,null,null,null,null,"",""]
["Indløb med riste, Konstruktioner","PE",60,30000,30000,30000,0,0]
["Indløb med riste, Mek/EL","PE",20,30000,30000,30000,0,0]
["Indløb med riste, SRO","PE",10,30000,30000,30000,0,0]
["Sand- og fedtfang, Kontruktioner","PE",60,30000,30000,30000,0,0]
["Sand- og fedtfang, Mek/EL","PE",20,30000,30000,30000,0,0]
["Sand- og fedtfang, SRO","PE",10,30000,30000,30000,0,0]
["Forklaring, Konstruktioner","PE",60,0,0,0,0,0]
["Forklaring, Mek/EL","PE",20,0,0,0,0,0]
["Forklaring, SRO","PE",10,0,0,0,0,0]
["Beluftningstanke, Konstruktioner","PE",60,21500,21500,21500,0,0]
["Beluftningstanke, Mek/EL","PE",20,21000,21000,21000,0,0]
["Beluftningstanke, SRO","PE",10,21500,21500,21500,0,0]
["Efterklaringstanke, Konstruktioner","PE",60,30000,30000,30000,0,0]
["Efterklaringstanke, Mek/El","PE",20,30000,30000,30000,0,0]
["Efterklaringstanke, SRO","PE",10,30000,30000,30000,{"$f":"IF(D131=\"\",IF(E131>0,\"Ny data\",IF(E131=\"\",\"\",0)),IF(D131=0,IF(E131=0,0,\"Ny data\"),(E131-D131)/D131))","v":0},{"$f":"IF(E131=\"\",IF(F131>0,\"Ny data\",IF(F131=\"\",\"\",0)),IF(E131=0,IF(F131=0,0,\"Ny data\"),(F131-E131)/E131))","v":0}]
["Efterbehandlingsanlæg (sandfilter), Konstruktioner","PE",60,0,0,0,0,0]
["Efterbehandlingsanlæg (sandfilter), Mek/EL","PE",20,0,0,0,0,0]
["Efterbehandlingsanlæg (sandfilter), SRO","PE",10,0,0,0,0,0]
["Renseanlæg >= 5.000 PE, Slambehandling",null,null,null,null,null,"",""]
["Forafvanding, slam, Konstruktion","PE",60,0,0,0,0,0]
["Forafvanding, slam, Mek/EL","PE",20,0,0,0,0,0]
["Forafvanding, slam, SRO","PE",10,0,0,0,0,0]
["Rådnetanke, slam, Konstruktioner","PE",60,0,0,0,0,0]
["Rådnetanke, slam, Mek/EL","PE",20,0,0,0,0,0]
["Rådnetanke, slam, SRO","PE",10,0,0,0,0,0]
["Gasdisponering, Konstruktioner","PE",60,0,0,0,0,0]
["Gasdisponering, Mek/EL","PE",20,0,0,0,0,0]
["Gasdisponering, SRO","PE",10,0,0,0,0,0]
["Gasdisponering - elproduktionsanlæg, Konstruktioner","PE",60,0,0,0,0,0]
["Gasdisponering - elproduktionsanlæg, Mek/EL","PE",20,0,0,0,0,0]
["Gasdisponering - elproduktionsanlæg, SRO","PE",10,0,0,0,0,0]
["Gasrensning - Aktivt kulfilter","m3/t",15,0,0,0,0,0]
["Gasrensning - Biologisk skrubber","m3/t",15,0,0,0,0,0]
["Opgraderingsanlæg - Membran","m3/t",15,0,0,0,0,0]
["Varmeproduktionsanlæg","m3/t",15,0,0,0,0,0]
["Slutafvanding, slam - lavteknologisk (slambede), Konstruktioner","PE",60,0,0,0,0,0]
["Slutafvanding, slam - lavteknologisk (slambede), Mek/EL","PE",20,0,0,0,0,0]
["Slutafvanding, slam - lavteknologisk (slambede), SRO","PE",10,0,0,0,0,0]
["Slutafvanding, slam - højteknologisk (centrifuger), Konstruktioner","PE",60,45400,45400,45400,0,0]
["Slutafvanding, slam - højteknologisk (centrifuger), Mek/El","PE",20,45400,45400,45400,0,0]
["Slutafvanding, slam - højteknologisk (centrifuger), SRO","PE",10,45400,45400,45400,0,0]
["Renseanlæg >= 5.000 PE, Slamdisponering",null,null,null,null,null,"",""]
["Slutdisponering, slam - lavteknologisk (slammineralisering), Konstruktioner","PE",60,0,0,0,0,0]
["Slutdisponering, slam - lavteknologisk (slammineralisering), Mek/EL","PE",20,0,0,0,0,0]
["Slutdisponering, slam - lavteknologisk (slammineralisering), SRO","PE",10,0,0,0,0,0]
["Slutdisponering, slam - højteknologisk (slamtørring), Konstruktioner","PE",60,0,0,0,0,0]
["Slutdisponering, slam - højteknologisk (slamtørring), Mek/EL","PE",20,0,0,0,0,0]
["Slutdisponering, slam - højteknologisk (slamtørring), SRO","PE",10,0,0,0,0,0]
["Slutdisponering, slam - højteknologisk (slamtørring og -forbrænding), Konstruktioner","PE",60,0,0,0,0,0]
["Slutdisponering, slam - højteknologisk (slamtørring og -forbrænding), Mek/EL","PE",20,0,0,0,0,0]
["Slutdisponering, slam - højteknologisk (slamtørring og -forbrænding), SRO","PE",10,0,0,0,0,0]
["Renseanlæg 4",null,null,null,null,null,"",""]
["Mindre renseanlæg",null,null,null,null,null,"",""]
["Mindre renseanlæg < 5.000 PE","PE",40,0,0,0,0,0]
["Renseanlæg >= 5.000 PE, Vandbehandling",null,null,null,null,null,"",""]
["Indløb med riste, Konstruktioner","PE",60,28000,28000,28000,0,0]
["Indløb med riste, Mek/EL","PE",20,28000,28000,28000,0,0]
["Indløb med riste, SRO","PE",10,28000,28000,28000,0,0]
["Sand- og fedtfang, Kontruktioner","PE",60,28000,28000,28000,0,0]
["Sand- og fedtfang, Mek/EL","PE",20,28000,28000,28000,0,0]
["Sand- og fedtfang, SRO","PE",10,28000,28000,28000,0,0]
["Forklaring, Konstruktioner","PE",60,0,0,0,0,0]
["Forklaring, Mek/EL","PE",20,0,0,0,0,0]
["Forklaring, SRO","PE",10,0,0,0,0,0]
["Beluftningstanke, Konstruktioner","PE",60,28000,28000,28000,0,0]
["Beluftningstanke, Mek/EL","PE",20,28000,28000,28000,0,0]
["Beluftningstanke, SRO","PE",10,28000,28000,28000,0,0]
["Efterklaringstanke, Konstruktioner","PE",60,28000,28000,28000,0,0]
["Efterklaringstanke, Mek/El","PE",20,28000,28000,28000,0,0]
["Efterklaringstanke, SRO","PE",10,28000,28000,28000,0,0]
["Efterbehandlingsanlæg (sandfilter), Konstruktioner","PE",60,0,0,0,0,0]
["Efterbehandlingsanlæg (sandfilter), Mek/EL","PE",20,0,0,0,0,0]
["Efterbehandlingsanlæg (sandfilter), SRO","PE",10,0,0,0,0,0]
["Renseanlæg >= 5.000 PE, Slambehandling",null,null,null,null,null,"",""]
["Forafvanding, slam, Konstruktion","PE",60,0,0,0,0,0]
["Forafvanding, slam, Mek/EL","PE",20,0,0,0,0,0]
["Forafvanding, slam, SRO","PE",10,0,0,0,0,0]
["Rådnetanke, slam, Konstruktioner","PE",60,0,0,0,0,0]
["Rådnetanke, slam, Mek/EL","PE",20,0,0,0,{"$f":"IF(D195=\"\",IF(E195>0,\"Ny data\",IF(E195=\"\",\"\",0)),IF(D195=0,IF(E195=0,0,\"Ny data\"),(E195-D195)/D195))","v":0},{"$f":"IF(E195=\"\",IF(F195>0,\"Ny data\",IF(F195=\"\",\"\",0)),IF(E195=0,IF(F195=0,0,\"Ny data\"),(F195-E195)/E195))","v":0}]
["Rådnetanke, slam, SRO","PE",10,0,0,0,0,0]
["Gasdisponering, Konstruktioner","PE",60,0,0,0,0,0]
["Gasdisponering, Mek/EL","PE",20,0,0,0,0,0]
["Gasdisponering, SRO","PE",10,0,0,0,0,0]
["Gasdisponering - elproduktionsanlæg, Konstruktioner","PE",60,0,0,0,0,0]
["Gasdisponering - elproduktionsanlæg, Mek/EL","PE",20,0,0,0,0,0]
["Gasdisponering - elproduktionsanlæg, SRO","PE",10,0,0,0,0,0]
["Gasrensning - Aktivt kulfilter","m3/t",15,0,0,0,0,0]
["Gasrensning - Biologisk skrubber","m3/t",15,0,0,0,0,0]
["Opgraderingsanlæg - Membran","m3/t",15,0,0,0,0,0]
["Varmeproduktionsanlæg","m3/t",15,0,0,0,0,0]
["Slutafvanding, slam - lavteknologisk (slambede), Konstruktioner","PE",60,0,0,0,0,0]
["Slutafvanding, slam - lavteknologisk (slambede), Mek/EL","PE",20,0,0,0,0,0]
["Slutafvanding, slam - lavteknologisk (slambede), SRO","PE",10,0,0,0,0,0]
["Slutafvanding, slam - højteknologisk (centrifuger), Konstruktioner","PE",60,27540,27540,27540,0,0]
["Slutafvanding, slam - højteknologisk (centrifuger), Mek/El","PE",20,27540,27540,27540,0,0]
["Slutafvanding, slam - højteknologisk (centrifuger), SRO","PE",10,27540,27540,27540,0,0]
["Renseanlæg >= 5.000 PE, Slamdisponering",null,null,null,null,null,"",""]
["Slutdisponering, slam - lavteknologisk (slammineralisering), Konstruktioner","PE",60,0,0,0,0,0]
["Slutdisponering, slam - lavteknologisk (slammineralisering), Mek/EL","PE",20,0,0,0,0,0]
["Slutdisponering, slam - lavteknologisk (slammineralisering), SRO","PE",10,0,0,0,0,0]
["Slutdisponering, slam - højteknologisk (slamtørring), Konstruktioner","PE",60,0,0,0,0,0]
["Slutdisponering, slam - højteknologisk (slamtørring), Mek/EL","PE",20,0,0,0,0,0]
["Slutdisponering, slam - højteknologisk (slamtørring), SRO","PE",10,0,0,0,0,0]
["Slutdisponering, slam - højteknologisk (slamtørring og -forbrænding), Konstruktioner","PE",60,0,0,0,0,0]
["Slutdisponering, slam - højteknologisk (slamtørring og -forbrænding), Mek/EL","PE",20,0,0,0,0,0]
["Slutdisponering, slam - højteknologisk (slamtørring og -forbrænding), SRO","PE",10,0,0,0,0,0]
["Renseanlæg 5",null,null,null,null,null,"",""]
["Mindre renseanlæg",null,null,null,null,null,"",""]
["Mindre renseanlæg < 5.000 PE","PE",40,35,35,35,0,0]
["Renseanlæg >= 5.000 PE, Vandbehandling",null,null,null,null,null,"",""]
["Indløb med riste, Konstruktioner","PE",60,0,0,0,0,0]
["Indløb med riste, Mek/EL","PE",20,0,0,0,0,0]
["Indløb med riste, SRO","PE",10,0,0,0,0,0]
["Sand- og fedtfang, Kontruktioner","PE",60,0,0,0,0,0]
["Sand- og fedtfang, Mek/EL","PE",20,0,0,0,0,0]
["Sand- og fedtfang, SRO","PE",10,0,0,0,0,0]
["Forklaring, Konstruktioner","PE",60,0,0,0,0,0]
["Forklaring, Mek/EL","PE",20,0,0,0,0,0]
["Forklaring, SRO","PE",10,0,0,0,0,0]
["Beluftningstanke, Konstruktioner","PE",60,0,0,0,0,0]
["Beluftningstanke, Mek/EL","PE",20,0,0,0,0,0]
["Beluftningstanke, SRO","PE",10,0,0,0,0,0]
["Efterklaringstanke, Konstruktioner","PE",60,0,0,0,0,0]
["Efterklaringstanke, Mek/El","PE",20,0,0,0,0,0]
["Efterklaringstanke, SRO","PE",10,0,0,0,0,0]
["Efterbehandlingsanlæg (sandfilter), Konstruktioner","PE",60,0,0,0,0,0]
["Efterbehandlingsanlæg (sandfilter), Mek/EL","PE",20,0,0,0,0,0]
["Efterbehandlingsanlæg (sandfilter), SRO","PE",10,0,0,0,0,0]
["Renseanlæg >= 5.000 PE, Slambehandling",null,null,null,null,null,"",""]
["Forafvanding, slam, Konstruktion","PE",60,0,0,0,0,0]
["Forafvanding, slam, Mek/EL","PE",20,0,0,0,0,0]
["Forafvanding, slam, SRO","PE",10,0,0,0,0,0]
["Rådnetanke, slam, Konstruktioner","PE",60,0,0,0,0,0]
["Rådnetanke, slam, Mek/EL","PE",20,0,0,0,0,0]
["Rådnetanke, slam, SRO","PE",10,0,0,0,0,0]
["Gasdisponering, Konstruktioner","PE",60,0,0,0,0,0]
["Gasdisponering, Mek/EL","PE",20,0,0,0,0,0]
["Gasdisponering, SRO","PE",10,0,0,0,0,0]
["Gasdisponering - elproduktionsanlæg, Konstruktioner","PE",60,0,0,0,0,0]
["Gasdisponering - elproduktionsanlæg, Mek/EL","PE",20,0,0,0,0,0]
["Gasdisponering - elproduktionsanlæg, SRO","PE",10,0,0,0,0,0]
["Gasrensning - Aktivt kulfilter","m3/t",15,0,0,0,0,0]
["Gasrensning - Biologisk skrubber","m3/t",15,0,0,0,{"$f":"IF(D259=\"\",IF(E259>0,\"Ny data\",IF(E259=\"\",\"\",0)),IF(D259=0,IF(E259=0,0,\"Ny data\"),(E259-D259)/D259))","v":0},{"$f":"IF(E259=\"\",IF(F259>0,\"Ny data\",IF(F259=\"\",\"\",0)),IF(E259=0,IF(F259=0,0,\"Ny data\"),(F259-E259)/E259))","v":0}]
["Opgraderingsanlæg - Membran","m3/t",15,0,0,0,0,0]
["Varmeproduktionsanlæg","m3/t",15,0,0,0,0,0]
["Slutafvanding, slam - lavteknologisk (slambede), Konstruktioner","PE",60,0,0,0,0,0]
["Slutafvanding, slam - lavteknologisk (slambede), Mek/EL","PE",20,0,0,0,0,0]
["Slutafvanding, slam - lavteknologisk (slambede), SRO","PE",10,0,0,0,0,0]
["Slutafvanding, slam - højteknologisk (centrifuger), Konstruktioner","PE",60,0,0,0,0,0]
["Slutafvanding, slam - højteknologisk (centrifuger), Mek/El","PE",20,0,0,0,0,0]
["Slutafvanding, slam - højteknologisk (centrifuger), SRO","PE",10,0,0,0,0,0]
["Renseanlæg >= 5.000 PE, Slamdisponering",null,null,null,null,null,"",""]
["Slutdisponering, slam - lavteknologisk (slammineralisering), Konstruktioner","PE",60,0,0,0,0,0]
["Slutdisponering, slam - lavteknologisk (slammineralisering), Mek/EL","PE",20,0,0,0,0,0]
["Slutdisponering, slam - lavteknologisk (slammineralisering), SRO","PE",10,0,0,0,0,0]
["Slutdisponering, slam - højteknologisk (slamtørring), Konstruktioner","PE",60,0,0,0,0,0]
["Slutdisponering, slam - højteknologisk (slamtørring), Mek/EL","PE",20,0,0,0,0,0]
["Slutdisponering, slam - højteknologisk (slamtørring), SRO","PE",10,0,0,0,0,0]
["Slutdisponering, slam - højteknologisk (slamtørring og -forbrænding), Konstruktioner","PE",60,0,0,0,0,0]
["Slutdisponering, slam - højteknologisk (slamtørring og -forbrænding), Mek/EL","PE",20,0,0,0,0,0]
["Slutdisponering, slam - højteknologisk (slamtørring og -forbrænding), SRO","PE",10,0,0,0,0,0]
["Renseanlæg 6",null,null,null,null,null,"",""]
["Mindre renseanlæg",null,null,null,null,null,"",""]
["Mindre renseanlæg < 5.000 PE","PE",40,0,0,0,0,0]
["Renseanlæg >= 5.000 PE, Vandbehandling",null,null,null,null,null,"",""]
["Indløb med riste, Konstruktioner","PE",60,5500,5500,5500,0,0]
["Indløb med riste, Mek/EL","PE",20,5500,5500,5500,0,0]
["Indløb med riste, SRO","PE",10,5500,5500,5500,0,0]
["Sand- og fedtfang, Kontruktioner","PE",60,5500,5500,5500,0,0]
["Sand- og fedtfang, Mek/EL","PE",20,5500,5500,5500,0,0]
["Sand- og fedtfang, SRO","PE",10,5500,5500,5500,0,0]
["Forklaring, Konstruktioner","PE",60,0,0,0,0,0]
["Forklaring, Mek/EL","PE",20,0,0,0,0,0]
["Forklaring, SRO","PE",10,0,0,0,0,0]
["Beluftningstanke, Konstruktioner","PE",60,5500,5500,5500,0,0]
["Beluftningstanke, Mek/EL","PE",20,8300,8300,8300,0,0]
["Beluftningstanke, SRO","PE",10,5500,5500,5500,0,0]
["Efterklaringstanke, Konstruktioner","PE",60,5500,5500,5500,0,0]
["Efterklaringstanke, Mek/El","PE",20,5500,5500,5500,0,0]
["Efterklaringstanke, SRO","PE",10,5500,5500,5500,0,0]
["Efterbehandlingsanlæg (sandfilter), Konstruktioner","PE",60,0,0,0,0,0]
["Efterbehandlingsanlæg (sandfilter), Mek/EL","PE",20,0,0,0,0,0]
["Efterbehandlingsanlæg (sandfilter), SRO","PE",10,0,0,0,0,0]
["Renseanlæg >= 5.000 PE, Slambehandling",null,null,null,null,null,"",""]
["Forafvanding, slam, Konstruktion","PE",60,0,0,0,0,0]
["Forafvanding, slam, Mek/EL","PE",20,0,0,0,0,0]
["Forafvanding, slam, SRO","PE",10,0,0,0,0,0]
["Rådnetanke, slam, Konstruktioner","PE",60,0,0,0,0,0]
["Rådnetanke, slam, Mek/EL","PE",20,0,0,0,0,0]
["Rådnetanke, slam, SRO","PE",10,0,0,0,0,0]
["Gasdisponering, Konstruktioner","PE",60,0,0,0,0,0]
["Gasdisponering, Mek/EL","PE",20,0,0,0,0,0]
["Gasdisponering, SRO","PE",10,0,0,0,0,0]
["Gasdisponering - elproduktionsanlæg, Konstruktioner","PE",60,0,0,0,0,0]
["Gasdisponering - elproduktionsanlæg, Mek/EL","PE",20,0,0,0,0,0]
["Gasdisponering - elproduktionsanlæg, SRO","PE",10,0,0,0,0,0]
["Gasrensning - Aktivt kulfilter","m3/t",15,0,0,0,0,0]
["Gasrensning - Biologisk skrubber","m3/t",15,0,0,0,0,0]
["Opgraderingsanlæg - Membran","m3/t",15,0,0,0,0,0]
["Varmeproduktionsanlæg","m3/t",15,0,0,0,0,0]
["Slutafvanding, slam - lavteknologisk (slambede), Konstruktioner","PE",60,0,0,0,0,0]
["Slutafvanding, slam - lavteknologisk (slambede), Mek/EL","PE",20,0,0,0,0,0]
["Slutafvanding, slam - lavteknologisk (slambede), SRO","PE",10,0,0,0,0,0]
["Slutafvanding, slam - højteknologisk (centrifuger), Konstruktioner","PE",60,5500,5500,5500,0,0]
["Slutafvanding, slam - højteknologisk (centrifuger), Mek/El","PE",20,5500,5500,5500,0,0]
["Slutafvanding, slam - højteknologisk (centrifuger), SRO","PE",10,5500,5500,5500,0,0]
["Renseanlæg >= 5.000 PE, Slamdisponering",null,null,null,null,null,{"$f":"IF(D323=\"\",IF(E323>0,\"Ny data\",IF(E323=\"\",\"\",0)),IF(D323=0,IF(E323=0,0,\"Ny data\"),(E323-D323)/D323))","v":""},{"$f":"IF(E323=\"\",IF(F323>0,\"Ny data\",IF(F323=\"\",\"\",0)),IF(E323=0,IF(F323=0,0,\"Ny data\"),(F323-E323)/E323))","v":""}]
["Slutdisponering, slam - lavteknologisk (slammineralisering), Konstruktioner","PE",60,0,0,0,0,0]
["Slutdisponering, slam - lavteknologisk (slammineralisering), Mek/EL","PE",20,0,0,0,0,0]
["Slutdisponering, slam - lavteknologisk (slammineralisering), SRO","PE",10,0,0,0,0,0]
["Slutdisponering, slam - højteknologisk (slamtørring), Konstruktioner","PE",60,0,0,0,0,0]
["Slutdisponering, slam - højteknologisk (slamtørring), Mek/EL","PE",20,0,0,0,0,0]
["Slutdisponering, slam - højteknologisk (slamtørring), SRO","PE",10,0,0,0,0,0]
["Slutdisponering, slam - højteknologisk (slamtørring og -forbrænding), Konstruktioner","PE",60,0,0,0,0,0]
["Slutdisponering, slam - højteknologisk (slamtørring og -forbrænding), Mek/EL","PE",20,0,0,0,0,0]
["Slutdisponering, slam - højteknologisk (slamtørring og -forbrænding), SRO","PE",10,0,0,0,0,0]
["Renseanlæg 7",null,null,null,null,null,"",""]
["Mindre renseanlæg",null,null,null,null,null,"",""]
["Mindre renseanlæg < 5.000 PE","PE",40,0,0,0,0,0]
["Renseanlæg >= 5.000 PE, Vandbehandling",null,null,null,null,null,"",""]
["Indløb med riste, Konstruktioner","PE",60,3200,3200,3200,0,0]
["Indløb med riste, Mek/EL","PE",20,3200,3200,3200,0,0]
["Indløb med riste, SRO","PE",10,3200,3200,3200,0,0]
["Sand- og fedtfang, Kontruktioner","PE",60,3200,3200,3200,0,0]
["Sand- og fedtfang, Mek/EL","PE",20,3200,3200,3200,0,0]
["Sand- og fedtfang, SRO","PE",10,3200,3200,3200,0,0]
["Forklaring, Konstruktioner","PE",60,0,0,0,0,0]
["Forklaring, Mek/EL","PE",20,0,0,0,0,0]
["Forklaring, SRO","PE",10,0,0,0,0,0]
["Beluftningstanke, Konstruktioner","PE",60,3200,3200,3200,0,0]
["Beluftningstanke, Mek/EL","PE",20,5900,5900,5900,0,0]
["Beluftningstanke, SRO","PE",10,3200,3200,3200,0,0]
["Efterklaringstanke, Konstruktioner","PE",60,3200,3200,3200,0,0]
["Efterklaringstanke, Mek/El","PE",20,3200,3200,3200,0,0]
["Efterklaringstanke, SRO","PE",10,3200,3200,3200,0,0]
["Efterbehandlingsanlæg (sandfilter), Konstruktioner","PE",60,0,0,0,0,0]
["Efterbehandlingsanlæg (sandfilter), Mek/EL","PE",20,0,0,0,0,0]
["Efterbehandlingsanlæg (sandfilter), SRO","PE",10,0,0,0,0,0]
["Renseanlæg >= 5.000 PE, Slambehandling",null,null,null,null,null,"",""]
["Forafvanding, slam, Konstruktion","PE",60,0,0,0,0,0]
["Forafvanding, slam, Mek/EL","PE",20,0,0,0,0,0]
["Forafvanding, slam, SRO","PE",10,0,0,0,0,0]
["Rådnetanke, slam, Konstruktioner","PE",60,0,0,0,0,0]
["Rådnetanke, slam, Mek/EL","PE",20,0,0,0,0,0]
["Rådnetanke, slam, SRO","PE",10,0,0,0,0,0]
["Gasdisponering, Konstruktioner","PE",60,0,0,0,0,0]
["Gasdisponering, Mek/EL","PE",20,0,0,0,0,0]
["Gasdisponering, SRO","PE",10,0,0,0,0,0]
["Gasdisponering - elproduktionsanlæg, Konstruktioner","PE",60,0,0,0,0,0]
["Gasdisponering - elproduktionsanlæg, Mek/EL","PE",20,0,0,0,0,0]
["Gasdisponering - elproduktionsanlæg, SRO","PE",10,0,0,0,0,0]
["Gasrensning - Aktivt kulfilter","m3/t",15,0,0,0,0,0]
["Gasrensning - Biologisk skrubber","m3/t",15,0,0,0,0,0]
["Opgraderingsanlæg - Membran","m3/t",15,0,0,0,0,0]
["Varmeproduktionsanlæg","m3/t",15,0,0,0,0,0]
["Slutafvanding, slam - lavteknologisk (slambede), Konstruktioner","PE",60,0,0,0,0,0]
["Slutafvanding, slam - lavteknologisk (slambede), Mek/EL","PE",20,0,0,0,0,0]
["Slutafvanding, slam - lavteknologisk (slambede), SRO","PE",10,0,0,0,0,0]
["Slutafvanding, slam - højteknologisk (centrifuger), Konstruktioner","PE",60,3200,3200,3200,0,0]
["Slutafvanding, slam - højteknologisk (centrifuger), Mek/El","PE",20,3200,3200,3200,0,0]
["Slutafvanding, slam - højteknologisk (centrifuger), SRO","PE",10,3200,3200,3200,0,0]
["Renseanlæg >= 5.000 PE, Slamdisponering",null,null,null,null,null,"",""]
["Slutdisponering, slam - lavteknologisk (slammineralisering), Konstruktioner","PE",60,0,0,0,0,0]
["Slutdisponering, slam - lavteknologisk (slammineralisering), Mek/EL","PE",20,0,0,0,0,0]
["Slutdisponering, slam - lavteknologisk (slammineralisering), SRO","PE",10,0,0,0,0,0]
["Slutdisponering, slam - højteknologisk (slamtørring), Konstruktioner","PE",60,0,0,0,0,0]
["Slutdisponering, slam - højteknologisk (slamtørring), Mek/EL","PE",20,0,0,0,0,0]
["Slutdisponering, slam - højteknologisk (slamtørring), SRO","PE",10,0,0,0,0,0]
["Slutdisponering, slam - højteknologisk (slamtørring og -forbrænding), Konstruktioner","PE",60,0,0,0,0,0]
["Slutdisponering, slam - højteknologisk (slamtørring og -forbrænding), Mek/EL","PE",20,0,0,0,0,0]
["Slutdisponering, slam - højteknologisk (slamtørring og -forbrænding), SRO","PE",10,0,0,0,{"$f":"IF(D387=\"\",IF(E387>0,\"Ny data\",IF(E387=\"\",\"\",0)),IF(D387=0,IF(E387=0,0,\"Ny data\"),(E387-D387)/D387))","v":0},{"$f":"IF(E387=\"\",IF(F387>0,\"Ny data\",IF(F387=\"\",\"\",0)),IF(E387=0,IF(F387=0,0,\"Ny data\"),(F387-E387)/E387))","v":0}]
["Renseanlæg 8",null,null,null,null,null,"",""]
["Mindre renseanlæg",null,null,null,null,null,"",""]
["Mindre renseanlæg < 5.000 PE","PE",40,0,0,0,0,0]
["Renseanlæg >= 5.000 PE, Vandbehandling",null,null,null,null,null,"",""]
["Indløb med riste, Konstruktioner","PE",60,0,0,0,0,0]
["Indløb med riste, Mek/EL","PE",20,0,0,0,0,0]
["Indløb med riste, SRO","PE",10,0,0,0,0,0]
["Sand- og fedtfang, Kontruktioner","PE",60,0,0,0,0,0]
["Sand- og fedtfang, Mek/EL","PE",20,0,0,0,0,0]
["Sand- og fedtfang, SRO","PE",10,0,0,0,0,0]
["Forklaring, Konstruktioner","PE",60,0,0,0,0,0]
["Forklaring, Mek/EL","PE",20,0,0,0,0,0]
["Forklaring, SRO","PE",10,0,0,0,0,0]
["Beluftningstanke, Konstruktioner","PE",60,0,0,0,0,0]
["Beluftningstanke, Mek/EL","PE",20,0,0,0,0,0]
["Beluftningstanke, SRO","PE",10,0,0,0,0,0]
["Efterklaringstanke, Konstruktioner","PE",60,0,0,0,0,0]
["Efterklaringstanke, Mek/El","PE",20,0,0,0,0,0]
["Efterklaringstanke, SRO","PE",10,0,0,0,0,0]
["Efterbehandlingsanlæg (sandfilter), Konstruktioner","PE",60,0,0,0,0,0]
["Efterbehandlingsanlæg (sandfilter), Mek/EL","PE",20,0,0,0,0,0]
["Efterbehandlingsanlæg (sandfilter), SRO","PE",10,0,0,0,0,0]
["Renseanlæg >= 5.000 PE, Slambehandling",null,null,null,null,null,"",""]
["Forafvanding, slam, Konstruktion","PE",60,0,0,0,0,0]
["Forafvanding, slam, Mek/EL","PE",20,0,0,0,0,0]
["Forafvanding, slam, SRO","PE",10,0,0,0,0,0]
["Rådnetanke, slam, Konstruktioner","PE",60,0,0,0,0,0]
["Rådnetanke, slam, Mek/EL","PE",20,0,0,0,0,0]
["Rådnetanke, slam, SRO","PE",10,0,0,0,0,0]
["Gasdisponering, Konstruktioner","PE",60,0,0,0,0,0]
["Gasdisponering, Mek/EL","PE",20,0,0,0,0,0]
["Gasdisponering, SRO","PE",10,0,0,0,0,0]
["Gasdisponering - elproduktionsanlæg, Konstruktioner","PE",60,0,0,0,0,0]
["Gasdisponering - elproduktionsanlæg, Mek/EL","PE",20,0,0,0,0,0]
["Gasdisponering - elproduktionsanlæg, SRO","PE",10,0,0,0,0,0]
["Gasrensning - Aktivt kulfilter","m3/t",15,0,0,0,0,0]
["Gasrensning - Biologisk skrubber","m3/t",15,0,0,0,0,0]
["Opgraderingsanlæg - Membran","m3/t",15,0,0,0,0,0]
["Varmeproduktionsanlæg","m3/t",15,0,0,0,0,0]
["Slutafvanding, slam - lavteknologisk (slambede), Konstruktioner","PE",60,0,0,0,0,0]
["Slutafvanding, slam - lavteknologisk (slambede), Mek/EL","PE",20,0,0,0,0,0]
["Slutafvanding, slam - lavteknologisk (slambede), SRO","PE",10,0,0,0,0,0]
["Slutafvanding, slam - højteknologisk (centrifuger), Konstruktioner","PE",60,0,0,0,0,0]
["Slutafvanding, slam - højteknologisk (centrifuger), Mek/El","PE",20,0,0,0,0,0]
["Slutafvanding, slam - højteknologisk (centrifuger), SRO","PE",10,0,0,0,0,0]
["Renseanlæg >= 5.000 PE, Slamdisponering",null,null,null,null,null,"",""]
["Slutdisponering, slam - lavteknologisk (slammineralisering), Konstruktioner","PE",60,0,0,0,0,0]
["Slutdisponering, slam - lavteknologisk (slammineralisering), Mek/EL","PE",20,0,0,0,0,0]
["Slutdisponering, slam - lavteknologisk (slammineralisering), SRO","PE",10,0,0,0,0,0]
["Slutdisponering, slam - højteknologisk (slamtørring), Konstruktioner","PE",60,0,0,0,0,0]
["Slutdisponering, slam - højteknologisk (slamtørring), Mek/EL","PE",20,0,0,0,0,0]
["Slutdisponering, slam - højteknologisk (slamtørring), SRO","PE",10,0,0,0,0,0]
["Slutdisponering, slam - højteknologisk (slamtørring og -forbrænding), Konstruktioner","PE",60,0,0,0,0,0]
["Slutdisponering, slam - højteknologisk (slamtørring og -forbrænding), Mek/EL","PE",20,0,0,0,0,0]
["Slutdisponering, slam - højteknologisk (slamtørring og -forbrænding), SRO","PE",10,0,0,0,0,0]
["Renseanlæg 9",null,null,null,null,null,"",""]
["Mindre renseanlæg",null,null,null,null,null,"",""]
["Mindre renseanlæg < 5.000 PE","PE",40,0,0,0,0,0]
["Renseanlæg >= 5.000 PE, Vandbehandling",null,null,null,null,null,"",""]
["Indløb med riste, Konstruktioner","PE",60,0,0,0,0,0]
["Indløb med riste, Mek/EL","PE",20,0,0,0,0,0]
["Indløb med riste, SRO","PE",10,0,0,0,0,0]
["Sand- og fedtfang, Kontruktioner","PE",60,0,0,0,0,0]
["Sand- og fedtfang, Mek/EL","PE",20,0,0,0,{"$f":"IF(D451=\"\",IF(E451>0,\"Ny data\",IF(E451=\"\",\"\",0)),IF(D451=0,IF(E451=0,0,\"Ny data\"),(E451-D451)/D451))","v":0},{"$f":"IF(E451=\"\",IF(F451>0,\"Ny data\",IF(F451=\"\",\"\",0)),IF(E451=0,IF(F451=0,0,\"Ny data\"),(F451-E451)/E451))","v":0}]
["Sand- og fedtfang, SRO","PE",10,0,0,0,0,0]
["Forklaring, Konstruktioner","PE",60,0,0,0,0,0]
["Forklaring, Mek/EL","PE",20,0,0,0,0,0]
["Forklaring, SRO","PE",10,0,0,0,0,0]
["Beluftningstanke, Konstruktioner","PE",60,0,0,0,0,0]
["Beluftningstanke, Mek/EL","PE",20,0,0,0,0,0]
["Beluftningstanke, SRO","PE",10,0,0,0,0,0]
["Efterklaringstanke, Konstruktioner","PE",60,0,0,0,0,0]
["Efterklaringstanke, Mek/El","PE",20,0,0,0,0,0]
["Efterklaringstanke, SRO","PE",10,0,0,0,0,0]
["Efterbehandlingsanlæg (sandfilter), Konstruktioner","PE",60,0,0,0,0,0]
["Efterbehandlingsanlæg (sandfilter), Mek/EL","PE",20,0,0,0,0,0]
["Efterbehandlingsanlæg (sandfilter), SRO","PE",10,0,0,0,0,0]
["Renseanlæg >= 5.000 PE, Slambehandling",null,null,null,null,null,"",""]
["Forafvanding, slam, Konstruktion","PE",60,0,0,0,0,0]
["Forafvanding, slam, Mek/EL","PE",20,0,0,0,0,0]
["Forafvanding, slam, SRO","PE",10,0,0,0,0,0]
["Rådnetanke, slam, Konstruktioner","PE",60,0,0,0,0,0]
["Rådnetanke, slam, Mek/EL","PE",20,0,0,0,0,0]
["Rådnetanke, slam, SRO","PE",10,0,0,0,0,0]
["Gasdisponering, Konstruktioner","PE",60,0,0,0,0,0]
["Gasdisponering, Mek/EL","PE",20,0,0,0,0,0]
["Gasdisponering, SRO","PE",10,0,0,0,0,0]
["Gasdisponering - elproduktionsanlæg, Konstruktioner","PE",60,0,0,0,0,0]
["Gasdisponering - elproduktionsanlæg, Mek/EL","PE",20,0,0,0,0,0]
["Gasdisponering - elproduktionsanlæg, SRO","PE",10,0,0,0,0,0]
["Gasrensning - Aktivt kulfilter","m3/t",15,0,0,0,0,0]
["Gasrensning - Biologisk skrubber","m3/t",15,0,0,0,0,0]
["Opgraderingsanlæg - Membran","m3/t",15,0,0,0,0,0]
["Varmeproduktionsanlæg","m3/t",15,0,0,0,0,0]
["Slutafvanding, slam - lavteknologisk (slambede), Konstruktioner","PE",60,0,0,0,0,0]
["Slutafvanding, slam - lavteknologisk (slambede), Mek/EL","PE",20,0,0,0,0,0]
["Slutafvanding, slam - lavteknologisk (slambede), SRO","PE",10,0,0,0,0,0]
["Slutafvanding, slam - højteknologisk (centrifuger), Konstruktioner","PE",60,0,0,0,0,0]
["Slutafvanding, slam - højteknologisk (centrifuger), Mek/El","PE",20,0,0,0,0,0]
["Slutafvanding, slam - højteknologisk (centrifuger), SRO","PE",10,0,0,0,0,0]
["Renseanlæg >= 5.000 PE, Slamdisponering",null,null,null,null,null,"",""]
["Slutdisponering, slam - lavteknologisk (slammineralisering), Konstruktioner","PE",60,0,0,0,0,0]
["Slutdisponering, slam - lavteknologisk (slammineralisering), Mek/EL","PE",20,0,0,0,0,0]
["Slutdisponering, slam - lavteknologisk (slammineralisering), SRO","PE",10,0,0,0,0,0]
["Slutdisponering, slam - højteknologisk (slamtørring), Konstruktioner","PE",60,0,0,0,0,0]
["Slutdisponering, slam - højteknologisk (slamtørring), Mek/EL","PE",20,0,0,0,0,0]
["Slutdisponering, slam - højteknologisk (slamtørring), SRO","PE",10,0,0,0,0,0]
["Slutdisponering, slam - højteknologisk (slamtørring og -forbrænding), Konstruktioner","PE",60,0,0,0,0,0]
["Slutdisponering, slam - højteknologisk (slamtørring og -forbrænding), Mek/EL","PE",20,0,0,0,0,0]
["Slutdisponering, slam - højteknologisk (slamtørring og -forbrænding), SRO","PE",10,0,0,0,0,0]
["Renseanlæg 10",null,null,null,null,null,"",""]
["Mindre renseanlæg",null,null,null,null,null,"",""]
["Mindre renseanlæg < 5.000 PE","PE",40,0,null,null,0,""]
["Renseanlæg >= 5.000 PE, Vandbehandling",null,null,null,null,null,"",""]
["Indløb med riste, Konstruktioner","PE",60,0,null,null,0,""]
["Indløb med riste, Mek/EL","PE",20,0,null,null,0,""]
["Indløb med riste, SRO","PE",10,0,null,null,0,""]
["Sand- og fedtfang, Kontruktioner","PE",60,0,null,null,0,""]
["Sand- og fedtfang, Mek/EL","PE",20,0,null,null,0,""]
["Sand- og fedtfang, SRO","PE",10,0,null,null,0,""]
["Forklaring, Konstruktioner","PE",60,0,null,null,0,""]
["Forklaring, Mek/EL","PE",20,0,null,null,0,""]
["Forklaring, SRO","PE",10,0,null,null,0,""]
["Beluftningstanke, Konstruktioner","PE",60,0,null,null,0,""]
["Beluftningstanke, Mek/EL","PE",20,0,null,null,0,""]
["Beluftningstanke, SRO","PE",10,0,null,null,0,""]
["Efterklaringstanke, Konstruktioner","PE",60,0,null,null,0,""]
["Efterklaringstanke, Mek/El","PE",20,0,null,null,{"$f":"IF(D515=\"\",IF(E515>0,\"Ny data\",IF(E515=\"\",\"\",0)),IF(D515=0,IF(E515=0,0,\"Ny data\"),(E515-D515)/D515))","v":0},{"$f":"IF(E515=\"\",IF(F515>0,\"Ny data\",IF(F515=\"\",\"\",0)),IF(E515=0,IF(F515=0,0,\"Ny data\"),(F515-E515)/E515))","v":""}]
["Efterklaringstanke, SRO","PE",10,0,null,null,0,""]
["Efterbehandlingsanlæg (sandfilter), Konstruktioner","PE",60,0,null,null,0,""]
["Efterbehandlingsanlæg (sandfilter), Mek/EL","PE",20,0,null,null,0,""]
["Efterbehandlingsanlæg (sandfilter), SRO","PE",10,0,null,null,0,""]
["Renseanlæg >= 5.000 PE, Slambehandling",null,null,null,null,null,"",""]
["Forafvanding, slam, Konstruktion","PE",60,0,null,null,0,""]
["Forafvanding, slam, Mek/EL","PE",20,0,null,null,0,""]
["Forafvanding, slam, SRO","PE",10,0,null,null,0,""]
["Rådnetanke, slam, Konstruktioner","PE",60,0,null,null,0,""]
["Rådnetanke, slam, Mek/EL","PE",20,0,null,null,0,""]
["Rådnetanke, slam, SRO","PE",10,0,null,null,0,""]
["Gasdisponering, Konstruktioner","PE",60,0,null,null,0,""]
["Gasdisponering, Mek/EL","PE",20,0,null,null,0,""]
["Gasdisponering, SRO","PE",10,0,null,null,0,""]
["Gasdisponering - elproduktionsanlæg, Konstruktioner","PE",60,0,null,null,0,""]
["Gasdisponering - elproduktionsanlæg, Mek/EL","PE",20,0,null,null,0,""]
["Gasdisponering - elproduktionsanlæg, SRO","PE",10,0,null,null,0,""]
["Gasrensning - Aktivt kulfilter","m3/t",15,0,null,null,0,""]
["Gasrensning - Biologisk skrubber","m3/t",15,0,null,null,0,""]
["Opgraderingsanlæg - Membran","m3/t",15,0,null,null,0,""]
["Varmeproduktionsanlæg","m3/t",15,0,null,null,0,""]
["Slutafvanding, slam - lavteknologisk (slambede), Konstruktioner","PE",60,0,null,null,0,""]
["Slutafvanding, slam - lavteknologisk (slambede), Mek/EL","PE",20,0,null,null,0,""]
["Slutafvanding, slam - lavteknologisk (slambede), SRO","PE",10,0,null,null,0,""]
["Slutafvanding, slam - højteknologisk (centrifuger), Konstruktioner","PE",60,0,null,null,0,""]
["Slutafvanding, slam - højteknologisk (centrifuger), Mek/El","PE",20,0,null,null,0,""]
["Slutafvanding, slam - højteknologisk (centrifuger), SRO","PE",10,0,null,null,0,""]
["Renseanlæg >= 5.000 PE, Slamdisponering",null,null,null,null,null,"",""]
["Slutdisponering, slam - lavteknologisk (slammineralisering), Konstruktioner","PE",60,0,null,null,0,""]
["Slutdisponering, slam - lavteknologisk (slammineralisering), Mek/EL","PE",20,0,null,null,0,""]
["Slutdisponering, slam - lavteknologisk (slammineralisering), SRO","PE",10,0,null,null,0,""]
["Slutdisponering, slam - højteknologisk (slamtørring), Konstruktioner","PE",60,0,null,null,0,""]
["Slutdisponering, slam - højteknologisk (slamtørring), Mek/EL","PE",20,0,null,null,0,""]
["Slutdisponering, slam - højteknologisk (slamtørring), SRO","PE",10,0,null,null,0,""]
["Slutdisponering, slam - højteknologisk (slamtørring og -forbrænding), Konstruktioner","PE",60,0,null,null,0,""]
["Slutdisponering, slam - højteknologisk (slamtørring og -forbrænding), Mek/EL","PE",20,0,null,null,0,""]
["Slutdisponering, slam - højteknologisk (slamtørring og -forbrænding), SRO","PE",20,0,null,null,0,""]

{"sheet":"Distributionsanlæg","index":1,"n_rows":318,"n_cols":9,"rows_kept":318,"cut":false,"hidden":false,"merged":[[0,0,1,0],[0,1,1,1],[0,2,1,2],[0,3,1,3],[0,8,1,8],[0,4,1,4],[0,5,1,5],[0,6,1,6],[0,7,1,7]]}
["Distributionsanlæg","Enhed","Standard-levetid","Samlet mængde per 31/12-2022","Samlet mængde per 31/12-2023","Samlet mængde per 31/12-2024","Afvigelse 2022-2023","Afvigelse 2023-2024","Bemærkninger"]
[]
["Ledningsnet - Land",null,null,null,null,null,{"$f":"IF(D3=\"\",IF(E3>0,\"Ny data\",IF(E3=\"\",\"\",0)),IF(D3=0,IF(E3=0,0,\"Ny data\"),(E3-D3)/D3))","v":""},{"$f":"IF(E3=\"\",IF(F3>0,\"Ny data\",IF(F3=\"\",\"\",0)),IF(E3=0,IF(F3=0,0,\"Ny data\"),(F3-E3)/E3))","v":""}]
["Ledningsnet ≤ Ø 200 mm ","meter",75,308999.82000000123,307671.79000000103,305671.7900000012,-4.2978342188037429E-3,-6.5004334651539509E-3]
["Ø 200 mm < Ledningsnet ≤ Ø 500 mm ","meter",75,146879.32000000009,144483.72,143883.72000000006,-1.6309988363236511E-2,-4.1527169981499766E-3]
["Ø 500 mm < Ledningsnet ≤ Ø 800 mm","meter",75,11080.879999999992,11535.769999999991,11535.769999999991,4.1051793720354321E-2,0]
["Ø 800 mm < Ledningsnet ≤ Ø 1000 mm","meter",75,945.13000000000011,986.19000000000017,986.19000000000017,4.3443759059600323E-2,0]
["Ø 1000 mm < Ledningsnet ≤ Ø 1200 mm","meter",75,195.45,222.76999999999998,222.76999999999998,0.1397799948836019,0]
["Ø 1200 mm < Ledningsnet ≤ Ø 1600 mm","meter",75,67.790000000000006,78.69,78.69,0.16079067709101624,0]
["Ledningsnet > Ø 1600 mm (rørbassiner og transportledninger)","meter",75,0,0,0,0,0]
["Strømpeforing ≤ Ø 200 mm","meter",50,7767.4400000000014,8842.1500000000015,8842.1500000000015,0.13836090140380869,0]
["Strømpeforing Ø 200 mm < Ledningsnet ≤ Ø 500 mm","meter",50,2174.86,2319.0900000000006,2319.0900000000006,6.6316912352979263E-2,0]
["Strømpeforing Ø 500 mm < Ledningsnet ≤ Ø 800 mm","meter",50,0,0,0,0,0]
["Strømpeforing Ø 800 mm < Ledningsnet ≤ Ø 1000 mm","meter",50,0,0,0,0,0]
["Strømpeforing Ø 1000 mm < Ledningsnet ≤ Ø 1200 mm","meter",50,0,0,0,0,0]
["Strømpeforing Ø 1200 mm < Ledningsnet ≤ Ø 1600 mm","meter",50,0,0,0,0,0]
["Ledningsnet - By",null,null,null,null,null,"",""]
["Ledningsnet ≤ Ø 200 mm ","meter",75,495370.8899999999,{"$f":"513782.960000001-5000","v":508782.96000000101},513782.96000000089,2.7074804496487703E-2,9.8273731494464226E-3]
["Ø 200 mm < Ledningsnet ≤ Ø 500 mm ","meter",75,197976.38999999966,{"$f":"204872.139999999-2000","v":202872.139999999},204872.13999999949,2.4728958842008073E-2,9.8584261003038885E-3]
["Ø 500 mm < Ledningsnet ≤ Ø 800 mm","meter",75,27761.560000000019,29525.110000000015,29525.110000000015,6.3524888370826219E-2,0]
["Ø 800 mm < Ledningsnet ≤ Ø 1000 mm","meter",75,7622.0499999999975,7754.7799999999961,7754.7799999999961,1.7413950315203743E-2,0]
["Ø 1000 mm < Ledningsnet ≤ Ø 1200 mm","meter",75,1153.25,1153.23,1153.23,-1.7342293518302024E-5,0]
["Ø 1200 mm < Ledningsnet ≤ Ø 1600 mm","meter",75,540.66,540.66,540.66,0,0]
["Ledningsnet > Ø 1600 mm (rørbassiner og transportledninger)","meter",75,0,1076.57,1076.57,"Ny data",0,"Validering af ledningsdata"]
["Strømpeforing ≤ Ø 200 mm","meter",50,16741.36,17571.309999999998,17571.309999999998,4.9574825462208393E-2,0]
["Strømpeforing Ø 200 mm < Ledningsnet ≤ Ø 500 mm","meter",50,8653.2300000000032,9007.4600000000028,9007.4600000000028,4.0936159098972226E-2,0]
["Strømpeforing Ø 500 mm < Ledningsnet ≤ Ø 800 mm","meter",50,888.3,888.3,888.3,0,0]
["Strømpeforing Ø 800 mm < Ledningsnet ≤ Ø 1000 mm","meter",50,550.61999999999989,550.61999999999989,550.61999999999989,0,0]
["Strømpeforing Ø 1000 mm < Ledningsnet ≤ Ø 1200 mm","meter",50,0,0,0,0,0]
["Strømpeforing Ø 1200 mm < Ledningsnet ≤ Ø 1600 mm","meter",50,284.43,284.43,284.43,0,0]
["Ledningsnet - City",null,null,null,null,null,"",""]
["Ledningsnet ≤ Ø 200 mm ","meter",75,0,null,null,0,""]
["Ø 200 mm < Ledningsnet ≤ Ø 500 mm ","meter",75,0,null,null,0,""]
["Ø 500 mm < Ledningsnet ≤ Ø 800 mm","meter",75,0,null,null,0,""]
["Ø 800 mm < Ledningsnet ≤ Ø 1000 mm","meter",75,0,null,null,0,""]
["Ø 1000 mm < Ledningsnet ≤ Ø 1200 mm","meter",75,0,null,null,0,""]
["Ø 1200 mm < Ledningsnet ≤ Ø 1600 mm","meter",75,0,null,null,0,""]
["Ledningsnet > Ø 1600 mm (rørbassiner og transportledninger)","meter",75,0,null,null,0,""]
["Strømpeforing ≤ Ø 200 mm","meter",50,0,null,null,0,""]
["Strømpeforing Ø 200 mm < Ledningsnet ≤ Ø 500 mm","meter",50,0,null,null,0,""]
["Strømpeforing Ø 500 mm < Ledningsnet ≤ Ø 800 mm","meter",50,0,null,null,0,""]
["Strømpeforing Ø 800 mm < Ledningsnet ≤ Ø 1000 mm","meter",50,0,null,null,0,""]
["Strømpeforing Ø 1000 mm < Ledningsnet ≤ Ø 1200 mm","meter",50,0,null,null,0,""]
["Strømpeforing Ø 1200 mm < Ledningsnet ≤ Ø 1600 mm","meter",50,0,null,null,0,""]
["Ledningsnet - Indre city",null,null,null,null,null,"",""]
["Ledningsnet ≤ Ø 200 mm ","meter",75,0,null,null,0,""]
["Ø 200 mm < Ledningsnet ≤ Ø 500 mm ","meter",75,0,null,null,0,""]
["Ø 500 mm < Ledningsnet ≤ Ø 800 mm","meter",75,0,null,null,0,""]
["Ø 800 mm < Ledningsnet ≤ Ø 1000 mm","meter",75,0,null,null,0,""]
["Ø 1000 mm < Ledningsnet ≤ Ø 1200 mm","meter",75,0,null,null,0,""]
["Ø 1200 mm < Ledningsnet ≤ Ø 1600 mm","meter",75,0,null,null,0,""]
["Ledningsnet > Ø 1600 mm (rørbassiner og transportledninger)","meter",75,0,null,null,0,""]
["Strømpeforing ≤ Ø 200 mm","meter",50,0,null,null,0,""]
["Strømpeforing Ø 200 mm < Ledningsnet ≤ Ø 500 mm","meter",50,0,null,null,0,""]
["Strømpeforing Ø 500 mm < Ledningsnet ≤ Ø 800 mm","meter",50,0,null,null,0,""]
["Strømpeforing Ø 800 mm < Ledningsnet ≤ Ø 1000 mm","meter",50,0,null,null,0,""]
["Strømpeforing Ø 1000 mm < Ledningsnet ≤ Ø 1200 mm","meter",50,0,null,null,0,""]
["Strømpeforing Ø 1200 mm < Ledningsnet ≤ Ø 1600 mm","meter",50,0,null,null,0,""]
["Brønde og stik, ledningsnet - Land",null,null,null,null,null,"",""]
["Brønde","stk.",75,14652,9506,9506,-0.35121485121485124,0,"Ændring i ejerskab af brønde"]
["Stik","stk.",75,10644,10272,10272,-3.4949267192784669E-2,0,"ok"]
["Brønde og stik, ledningsnet - By",null,null,null,null,null,"",""]
["Brønde","stk.",75,34414,24018,24018,-0.30208636020224328,0,"Ændring i ejerskab af brønde"]
["Stik","stk.",75,25390,26216,26216,3.2532493107522646E-2,0,"ok"]
["Brønde og stik, ledningsnet - City",null,null,null,null,null,"",""]
["Brønde","stk.",75,0,null,null,0,""]
["Stik","stk.",75,0,null,null,{"$f":"IF(D67=\"\",IF(E67>0,\"Ny data\",IF(E67=\"\",\"\",0)),IF(D67=0,IF(E67=0,0,\"Ny data\"),(E67-D67)/D67))","v":0},{"$f":"IF(E67=\"\",IF(F67>0,\"Ny data\",IF(F67=\"\",\"\",0)),IF(E67=0,IF(F67=0,0,\"Ny data\"),(F67-E67)/E67))","v":""}]
["Brønde og stik, ledningsnet - Indre city",null,null,null,null,null,"",""]
["Brønde","stk.",75,0,null,null,0,""]
["Stik","stk.",75,0,null,null,0,""]
["Små pumpestationer (<100 l/s) inkl. SRO-anlæg - Land",null,null,null,null,null,"",""]
["Tryksatte minipumpestationer (husstandssystemer)","stk.",30,0,3,3,"Ny data",0,"ok"]
["Pumpestationer i brønde (< 6,25 m2), Konstruktioner","stk.",50,234,234,234,0,0]
["Pumpestationer i brønde (< 6,25 m2), Mek/EL","stk.",20,234,234,234,0,0]
["Pumpestationer i brønde (< 6,25 m2), SRO","stk.",10,234,234,234,0,0]
["Pumpestationer m. overbygning (< 20 m2), Konstruktioner","stk.",50,5,5,5,0,0]
["Pumpestationer m. overbygning (< 20 m2), Mek/EL","stk.",20,5,5,5,0,0]
["Pumpestationer m. overbygning (< 20 m2), SRO","stk.",10,5,5,5,0,0]
["Pumpestationer i underjordiske bygværker (<50 m2), Konstruktioner","stk.",50,1,1,1,0,0]
["Pumpestationer i underjordiske bygværker (<50 m2), Mek/El","stk.",20,1,1,1,0,0]
["Pumpestationer i underjordiske bygværker (<50 m2), SRO","stk.",10,1,1,1,0,0]
["Små pumpestationer (<100 l/s) inkl. SRO-anlæg - By",null,null,null,null,null,"",""]
["Tryksatte minipumpestationer (husstandssystemer)","stk.",30,0,1,1,"Ny data",0,"Ny pumpe"]
["Pumpestationer i brønde (< 6,25 m2), Konstruktioner","stk.",50,31,32,34,3.2258064516129031E-2,6.25E-2]
["Pumpestationer i brønde (< 6,25 m2), Mek/EL","stk.",20,31,32,34,3.2258064516129031E-2,6.25E-2]
["Pumpestationer i brønde (< 6,25 m2), SRO","stk.",10,31,32,34,3.2258064516129031E-2,6.25E-2]
["Pumpestationer m. overbygning (< 20 m2), Konstruktioner","stk.",50,5,5,5,0,0]
["Pumpestationer m. overbygning (< 20 m2), Mek/EL","stk.",20,5,5,5,0,0]
["Pumpestationer m. overbygning (< 20 m2), SRO","stk.",10,5,5,5,0,0]
["Pumpestationer i underjordiske bygværker (<50 m2), Konstruktioner","stk.",50,2,2,2,0,0]
["Pumpestationer i underjordiske bygværker (<50 m2), Mek/El","stk.",20,2,2,2,0,0]
["Pumpestationer i underjordiske bygværker (<50 m2), SRO","stk.",10,2,2,2,0,0]
["Små pumpestationer (<100 l/s) inkl. SRO-anlæg - City",null,null,null,null,null,"",""]
["Tryksatte minipumpestationer (husstandssystemer)","stk.",30,0,null,null,0,""]
["Pumpestationer i brønde (< 6,25 m2), Konstruktioner","stk.",50,0,null,null,0,""]
["Pumpestationer i brønde (< 6,25 m2), Mek/EL","stk.",20,0,null,null,0,""]
["Pumpestationer i brønde (< 6,25 m2), SRO","stk.",10,0,null,null,0,""]
["Pumpestationer m. overbygning (< 20 m2), Konstruktioner","stk.",50,0,null,null,0,""]
["Pumpestationer m. overbygning (< 20 m2), Mek/EL","stk.",20,0,null,null,0,""]
["Pumpestationer m. overbygning (< 20 m2), SRO","stk.",10,0,null,null,0,""]
["Pumpestationer i underjordiske bygværker (<50 m2), Konstruktioner","stk.",50,0,null,null,0,""]
["Pumpestationer i underjordiske bygværker (<50 m2), Mek/El","stk.",20,0,null,null,0,""]
["Pumpestationer i underjordiske bygværker (<50 m2), SRO","stk.",10,0,null,null,0,""]
["Små pumpestationer (<100 l/s) inkl. SRO-anlæg - Indre city",null,null,null,null,null,"",""]
["Tryksatte minipumpestationer (husstandssystemer)","stk.",30,0,null,null,0,""]
["Pumpestationer i brønde (< 6,25 m2), Konstruktioner","stk.",50,0,null,null,0,""]
["Pumpestationer i brønde (< 6,25 m2), Mek/EL","stk.",20,0,null,null,0,""]
["Pumpestationer i brønde (< 6,25 m2), SRO","stk.",10,0,null,null,0,""]
["Pumpestationer m. overbygning (< 20 m2), Konstruktioner","stk.",50,0,null,null,0,""]
["Pumpestationer m. overbygning (< 20 m2), Mek/EL","stk.",20,0,null,null,0,""]
["Pumpestationer m. overbygning (< 20 m2), SRO","stk.",10,0,null,null,0,""]
["Pumpestationer i underjordiske bygværker (<50 m2), Konstruktioner","stk.",50,0,null,null,0,""]
["Pumpestationer i underjordiske bygværker (<50 m2), Mek/El","stk.",20,0,null,null,0,""]
["Pumpestationer i underjordiske bygværker (<50 m2), SRO","stk.",10,0,null,null,0,""]
["Store pumpestationer: inkl. SRO-anlæg - Land",null,null,null,null,null,"",""]
["Kælder","m2",75,0,null,null,0,""]
["Pumpeinstallation Miljøklasse A (100-300 l/s) - Mek/EL","stk.",20,0,null,null,0,""]
["Pumpeinstallation Miljøklasse A (100-300 l/s) - SRO","stk.",10,0,null,null,0,""]
["Pumpeinstallation Miljøklasse A (300-600 l/s) - Mek/EL","stk.",20,0,null,null,0,""]
["Pumpeinstallation Miljøklasse A (300-600 l/s) - SRO","stk.",10,0,null,null,0,""]
["Pumpeinstallation Miljøklasse A (600-1.000 l/s) - Mek/EL","stk.",20,0,null,null,0,""]
["Pumpeinstallation Miljøklasse A (600-1.000 l/s) - SRO","stk.",10,0,null,null,0,""]
["Pumpeinstallation Miljøklasse A (1.000-1.500 l/s) - Mek/EL","stk.",20,0,null,null,0,""]
["Pumpeinstallation Miljøklasse A (1.000-1.500 l/s) - SRO","stk.",10,0,null,null,0,""]
["Pumpeinstallation Miljøklasse B (100-300 l/s) - Mek/EL","stk.",20,0,null,null,0,""]
["Pumpeinstallation Miljøklasse B (100-300 l/s) - SRO","stk.",10,0,null,null,0,""]
["Pumpeinstallation Miljøklasse B (300-600 l/s) - Mek/EL","stk.",20,0,null,null,0,""]
["Pumpeinstallation Miljøklasse B (300-600 l/s) - SRO","stk.",10,0,null,null,0,""]
["Pumpeinstallation Miljøklasse B (600-1.000 l/s) - Mek/EL","stk.",20,0,null,null,0,""]
["Pumpeinstallation Miljøklasse B (600-1.000 l/s) - SRO","stk.",10,0,null,null,0,""]
["Pumpeinstallation Miljøklasse B (1.000-1.500 l/s) - Mek/EL","stk.",20,0,null,null,{"$f":"IF(D131=\"\",IF(E131>0,\"Ny data\",IF(E131=\"\",\"\",0)),IF(D131=0,IF(E131=0,0,\"Ny data\"),(E131-D131)/D131))","v":0},{"$f":"IF(E131=\"\",IF(F131>0,\"Ny data\",IF(F131=\"\",\"\",0)),IF(E131=0,IF(F131=0,0,\"Ny data\"),(F131-E131)/E131))","v":""}]
["Pumpeinstallation Miljøklasse B (1.000-1.500 l/s) - SRO","stk.",10,0,null,null,0,""]
["Overbygning","m2",75,0,null,null,0,""]
["Store pumpestationer: inkl. SRO-anlæg - By",null,null,null,null,null,"",""]
["Kælder","m2",75,0,null,null,0,""]
["Pumpeinstallation Miljøklasse A (100-300 l/s) - Mek/EL","stk.",20,0,null,null,0,""]
["Pumpeinstallation Miljøklasse A (100-300 l/s) - SRO","stk.",10,0,null,null,0,""]
["Pumpeinstallation Miljøklasse A (300-600 l/s) - Mek/EL","stk.",20,0,null,null,0,""]
["Pumpeinstallation Miljøklasse A (300-600 l/s) - SRO","stk.",10,0,null,null,0,""]
["Pumpeinstallation Miljøklasse A (600-1.000 l/s) - Mek/EL","stk.",20,0,null,null,0,""]
["Pumpeinstallation Miljøklasse A (600-1.000 l/s) - SRO","stk.",10,0,null,null,0,""]
["Pumpeinstallation Miljøklasse A (1.000-1.500 l/s) - Mek/EL","stk.",20,0,null,null,0,""]
["Pumpeinstallation Miljøklasse A (1.000-1.500 l/s) - SRO","stk.",10,0,null,null,0,""]
["Pumpeinstallation Miljøklasse B (100-300 l/s) - Mek/EL","stk.",20,0,null,null,0,""]
["Pumpeinstallation Miljøklasse B (100-300 l/s) - SRO","stk.",10,0,null,null,0,""]
["Pumpeinstallation Miljøklasse B (300-600 l/s) - Mek/EL","stk.",20,0,null,null,0,""]
["Pumpeinstallation Miljøklasse B (300-600 l/s) - SRO","stk.",10,0,null,null,0,""]
["Pumpeinstallation Miljøklasse B (600-1.000 l/s) - Mek/EL","stk.",20,0,null,null,0,""]
["Pumpeinstallation Miljøklasse B (600-1.000 l/s) - SRO","stk.",10,0,null,null,0,""]
["Pumpeinstallation Miljøklasse B (1.000-1.500 l/s) - Mek/EL","stk.",20,0,null,null,0,""]
["Pumpeinstallation Miljøklasse B (1.000-1.500 l/s) - SRO","stk.",10,0,null,null,0,""]
["Overbygning ","m2",75,0,null,null,0,""]
["Store pumpestationer: inkl. SRO-anlæg - City",null,null,null,null,null,"",""]
["Kælder","m2",75,0,null,null,0,""]
["Pumpeinstallation Miljøklasse A (100-300 l/s) - Mek/EL","stk.",20,0,null,null,0,""]
["Pumpeinstallation Miljøklasse A (100-300 l/s) - SRO","stk.",10,0,null,null,0,""]
["Pumpeinstallation Miljøklasse A (300-600 l/s) - Mek/EL","stk.",20,0,null,null,0,""]
["Pumpeinstallation Miljøklasse A (300-600 l/s) - SRO","stk.",10,0,null,null,0,""]
["Pumpeinstallation Miljøklasse A (600-1.000 l/s) - Mek/EL","stk.",20,0,null,null,0,""]
["Pumpeinstallation Miljøklasse A (600-1.000 l/s) - SRO","stk.",10,0,null,null,0,""]
["Pumpeinstallation Miljøklasse A (1.000-1.500 l/s) - Mek/EL","stk.",20,0,null,null,0,""]
["Pumpeinstallation Miljøklasse A (1.000-1.500 l/s) - SRO","stk.",10,0,null,null,0,""]
["Pumpeinstallation Miljøklasse B (100-300 l/s) - Mek/EL","stk.",20,0,null,null,0,""]
["Pumpeinstallation Miljøklasse B (100-300 l/s) - SRO","stk.",10,0,null,null,0,""]
["Pumpeinstallation Miljøklasse B (300-600 l/s) - Mek/EL","stk.",20,0,null,null,0,""]
["Pumpeinstallation Miljøklasse B (300-600 l/s) - SRO","stk.",10,0,null,null,0,""]
["Pumpeinstallation Miljøklasse B (600-1.000 l/s) - Mek/EL","stk.",20,0,null,null,0,""]
["Pumpeinstallation Miljøklasse B (600-1.000 l/s) - SRO","stk.",10,0,null,null,0,""]
["Pumpeinstallation Miljøklasse B (1.000-1.500 l/s) - Mek/EL","stk.",20,0,null,null,0,""]
["Pumpeinstallation Miljøklasse B (1.000-1.500 l/s) - SRO","stk.",10,0,null,null,0,""]
["Overbygning ","m2",75,0,null,null,0,""]
["Store pumpestationer: inkl. SRO-anlæg - Indre city",null,null,null,null,null,"",""]
["Kælder","m2",75,0,null,null,0,""]
["Pumpeinstallation Miljøklasse A (100-300 l/s) - Mek/EL","stk.",20,0,null,null,0,""]
["Pumpeinstallation Miljøklasse A (100-300 l/s) - SRO","stk.",10,0,null,null,0,""]
["Pumpeinstallation Miljøklasse A (300-600 l/s) - Mek/EL","stk.",20,0,null,null,0,""]
["Pumpeinstallation Miljøklasse A (300-600 l/s) - SRO","stk.",10,0,null,null,0,""]
["Pumpeinstallation Miljøklasse A (600-1.000 l/s) - Mek/EL","stk.",20,0,null,null,0,""]
["Pumpeinstallation Miljøklasse A (600-1.000 l/s) - SRO","stk.",10,0,null,null,0,""]
["Pumpeinstallation Miljøklasse A (1.000-1.500 l/s) - Mek/EL","stk.",20,0,null,null,0,""]
["Pumpeinstallation Miljøklasse A (1.000-1.500 l/s) - SRO","stk.",10,0,null,null,0,""]
["Pumpeinstallation Miljøklasse B (100-300 l/s) - Mek/EL","stk.",20,0,null,null,0,""]
["Pumpeinstallation Miljøklasse B (100-300 l/s) - SRO","stk.",10,0,null,null,0,""]
["Pumpeinstallation Miljøklasse B (300-600 l/s) - Mek/EL","stk.",20,0,null,null,0,""]
["Pumpeinstallation Miljøklasse B (300-600 l/s) - SRO","stk.",10,0,null,null,0,""]
["Pumpeinstallation Miljøklasse B (600-1.000 l/s) - Mek/EL","stk.",20,0,null,null,0,""]
["Pumpeinstallation Miljøklasse B (600-1.000 l/s) - SRO","stk.",10,0,null,null,0,""]
["Pumpeinstallation Miljøklasse B (1.000-1.500 l/s) - Mek/EL","stk.",20,0,null,null,0,""]
["Pumpeinstallation Miljøklasse B (1.000-1.500 l/s) - SRO","stk.",10,0,null,null,0,""]
["Overbygning","m2",75,0,null,null,0,""]
["Overløbsbygværker - Land",null,null,null,null,null,"",""]
["Kælder (< 7 m2) ","stk.",75,21,21,21,0,0,"ok"]
["Kælder (7 - 20 m2) ","m2",75,0,0,0,0,0]
["Kælder (20 - 30 m2)","m2",75,0,0,0,0,0]
["Installationer (mindre end 7 m2)","stk.",20,21,21,21,{"$f":"IF(D195=\"\",IF(E195>0,\"Ny data\",IF(E195=\"\",\"\",0)),IF(D195=0,IF(E195=0,0,\"Ny data\"),(E195-D195)/D195))","v":0},{"$f":"IF(E195=\"\",IF(F195>0,\"Ny data\",IF(F195=\"\",\"\",0)),IF(E195=0,IF(F195=0,0,\"Ny data\"),(F195-E195)/E195))","v":0},"ok"]
["Installationer, Miljøklasse A. (7-20 m2) - Mek/EL","stk.",20,0,0,0,0,0]
["Installationer, Miljøklasse A. (7-20 m2) - SRO","stk.",10,0,0,0,0,0]
["Installationer, Miljøklasse A. (20-30 m2) - Mek/EL","stk.",20,0,0,0,0,0]
["Installationer, Miljøklasse A. (20-30 m2) - SRO","stk.",10,0,0,0,0,0]
["Installationer, Miljøklasse B. (7-20 m2) - Mek/EL","stk.",20,0,0,0,0,0]
["Installationer, Miljøklasse B. (7-20 m2) - SRO","stk.",10,0,0,0,0,0]
["Installationer, Miljøklasse B. (20-30 m2) - Mek/EL","stk.",20,0,0,0,0,0]
["Installationer, Miljøklasse B. (20-30 m2) - SRO","stk.",10,0,0,0,0,0]
["Overbygning","stk.",75,21,21,21,0,0,"ok"]
["Overløbsbygværker - By",null,null,null,null,null,"",""]
["Kælder (< 7 m2) ","stk.",75,18,18,18,0,0,"ok"]
["Kælder (7 - 20 m2) ","m2",75,0,0,0,0,0]
["Kælder (20 - 30 m2)","m2",75,0,0,0,0,0]
["Installationer (mindre end 7 m2)","stk.",20,18,18,18,0,0,"ok"]
["Installationer, Miljøklasse A. (7-20 m2) - Mek/EL","stk.",20,2,1,1,-0.5,0,"ok"]
["Installationer, Miljøklasse A. (7-20 m2) - SRO","stk.",10,2,1,1,-0.5,0,"ok"]
["Installationer, Miljøklasse A. (20-30 m2) - Mek/EL","stk.",20,0,0,0,0,0]
["Installationer, Miljøklasse A. (20-30 m2) - SRO","stk.",10,0,0,0,0,0]
["Installationer, Miljøklasse B. (7-20 m2) - Mek/EL","stk.",20,0,0,0,0,0]
["Installationer, Miljøklasse B. (7-20 m2) - SRO","stk.",10,0,0,0,0,0]
["Installationer, Miljøklasse B. (20-30 m2) - Mek/EL","stk.",20,0,0,0,0,0]
["Installationer, Miljøklasse B. (20-30 m2) - SRO","stk.",10,0,0,0,0,0]
["Overbygning","stk.",75,20,20,20,0,0,"ok"]
["Overløbsbygværker - City",null,null,null,null,null,"",""]
["Kælder (< 7 m2) ","stk.",75,0,null,null,0,""]
["Kælder (7 - 20 m2) ","m2",75,0,null,null,0,""]
["Kælder (20 - 30 m2)","m2",75,0,null,null,0,""]
["Installationer (mindre end 7 m2)","stk.",20,0,null,null,0,""]
["Installationer, Miljøklasse A. (7-20 m2) - Mek/EL","stk.",20,0,null,null,0,""]
["Installationer, Miljøklasse A. (7-20 m2) - SRO","stk.",10,0,null,null,0,""]
["Installationer, Miljøklasse A. (20-30 m2) - Mek/EL","stk.",20,0,null,null,0,""]
["Installationer, Miljøklasse A. (20-30 m2) - SRO","stk.",10,0,null,null,0,""]
["Installationer, Miljøklasse B. (7-20 m2) - Mek/EL","stk.",20,0,null,null,0,""]
["Installationer, Miljøklasse B. (7-20 m2) - SRO","stk.",10,0,null,null,0,""]
["Installationer, Miljøklasse B. (20-30 m2) - Mek/EL","stk.",20,0,null,null,0,""]
["Installationer, Miljøklasse B. (20-30 m2) - SRO","stk.",10,0,null,null,0,""]
["Overbygning (efter beliggenhed) ","stk.",75,0,null,null,0,""]
["Overløbsbygværker - Indre city",null,null,null,null,null,"",""]
["Kælder (< 7 m2) ","stk.",75,0,null,null,0,""]
["Kælder (7 - 20 m2) ","m2",75,0,null,null,0,""]
["Kælder (20 - 30 m2)","m2",75,0,null,null,0,""]
["Installationer (mindre end 7 m2)","stk.",20,0,null,null,0,""]
["Installationer, Miljøklasse A. (7-20 m2) - Mek/EL","stk.",20,0,null,null,0,""]
["Installationer, Miljøklasse A. (7-20 m2) - SRO","stk.",10,0,null,null,0,""]
["Installationer, Miljøklasse A. (20-30 m2) - Mek/EL","stk.",20,0,null,null,0,""]
["Installationer, Miljøklasse A. (20-30 m2) - SRO","stk.",10,0,null,null,0,""]
["Installationer, Miljøklasse B. (7-20 m2) - Mek/EL","stk.",20,0,null,null,0,""]
["Installationer, Miljøklasse B. (7-20 m2) - SRO","stk.",10,0,null,null,0,""]
["Installationer, Miljøklasse B. (20-30 m2) - Mek/EL","stk.",20,0,null,null,0,""]
["Installationer, Miljøklasse B. (20-30 m2) - SRO","stk.",10,0,null,null,0,""]
["Overbygning","stk.",75,0,null,null,0,""]
["Forsinkelsesbassiner - Land",null,null,null,null,null,"",""]
["Forsinkelsesbassiner, lukkede uden automatisk rensning og SRO (mindre end 1.000 m3)","m³",50,0,null,null,0,""]
["Forsinkelsesbassiner, lukkede med automatisk rensning og SRO (mindre end 1.000 m3) - Konstruktioner","m³",75,4614,7879,7879,{"$f":"IF(D249=\"\",IF(E249>0,\"Ny data\",IF(E249=\"\",\"\",0)),IF(D249=0,IF(E249=0,0,\"Ny data\"),(E249-D249)/D249))","v":0.70762895535327264},{"$f":"IF(E249=\"\",IF(F249>0,\"Ny data\",IF(F249=\"\",\"\",0)),IF(E249=0,IF(F249=0,0,\"Ny data\"),(F249-E249)/E249))","v":0},"Udvikling i bassiner"]
["Forsinkelsesbassiner, lukkede med automatisk rensning og SRO (mindre end 1.000 m3) - Mek/EL","m³",20,4614,7879,7879,{"$f":"IF(D250=\"\",IF(E250>0,\"Ny data\",IF(E250=\"\",\"\",0)),IF(D250=0,IF(E250=0,0,\"Ny data\"),(E250-D250)/D250))","v":0.70762895535327264},{"$f":"IF(E250=\"\",IF(F250>0,\"Ny data\",IF(F250=\"\",\"\",0)),IF(E250=0,IF(F250=0,0,\"Ny data\"),(F250-E250)/E250))","v":0},"Udvikling i bassiner"]
["Forsinkelsesbassiner, lukkede med automatisk rensning og SRO (mindre end 1.000 m3) - SRO ","m³",10,4614,7879,7879,0.70762895535327264,0,"Udvikling i bassiner"]
["Forsinkelsesbassiner, lukkede (1.000-4.000 m3) - Konstruktioner","m³",75,0,null,null,0,""]
["Forsinkelsesbassiner, lukkede (1.000-4.000 m3) - Mek/EL","m³",20,0,null,null,0,""]
["Forsinkelsesbassiner, lukkede (1.000-4.000 m3) - SRO","m³",10,0,null,null,0,""]
["Forsinkelsesbassiner, lukkede (4.000-10.000 m3) - Konstruktioner","m³",75,0,null,null,0,""]
["Forsinkelsesbassiner, lukkede (4.000-10.000 m3) - Mek/EL","m³",20,0,null,null,0,""]
["Forsinkelsesbassiner, lukkede (4.000-10.000 m3) - SRO","m³",10,0,null,null,0,""]
["Forsinkelsesbassiner, lukkede (større end 10.000 m3) - Konstruktioner","m³",75,0,null,null,0,""]
["Forsinkelsesbassiner, lukkede (større end 10.000 m3) - Mek/EL","m³",20,0,null,null,{"$f":"IF(D259=\"\",IF(E259>0,\"Ny data\",IF(E259=\"\",\"\",0)),IF(D259=0,IF(E259=0,0,\"Ny data\"),(E259-D259)/D259))","v":0},{"$f":"IF(E259=\"\",IF(F259>0,\"Ny data\",IF(F259=\"\",\"\",0)),IF(E259=0,IF(F259=0,0,\"Ny data\"),(F259-E259)/E259))","v":""}]
["Forsinkelsesbassiner, lukkede (større end 10.000 m3) - SRO","m³",10,0,null,null,0,""]
["Forsinkelsesbassiner - By",null,null,null,null,null,"",""]
["Forsinkelsesbassiner, lukkede uden automatisk rensning og SRO (mindre end 1.000 m3)","m³",50,200,0,0,-1,0,"Opdatering af data"]
["Forsinkelsesbassiner, lukkede med automatisk rensning og SRO (mindre end 1.000 m3) - Konstruktioner","m³",75,0,null,null,0,""]
["Forsinkelsesbassiner, lukkede med automatisk rensning og SRO (mindre end 1.000 m3) - Mek/EL","m³",20,0,null,null,0,""]
["Forsinkelsesbassiner, lukkede med automatisk rensning og SRO (mindre end 1.000 m3) - SRO ","m³",10,0,null,null,0,""]
["Forsinkelsesbassiner, lukkede (1.000-4.000 m3) - Konstruktioner","m³",75,0,null,null,0,""]
["Forsinkelsesbassiner, lukkede (1.000-4.000 m3) - Mek/EL","m³",20,0,null,null,0,""]
["Forsinkelsesbassiner, lukkede (1.000-4.000 m3) - SRO","m³",10,0,null,null,0,""]
["Forsinkelsesbassiner, lukkede (4.000-10.000 m3) - Konstruktioner","m³",75,0,null,null,0,""]
["Forsinkelsesbassiner, lukkede (4.000-10.000 m3) - Mek/EL","m³",20,0,null,null,0,""]
["Forsinkelsesbassiner, lukkede (4.000-10.000 m3) - SRO","m³",10,0,null,null,0,""]
["Forsinkelsesbassiner, lukkede (større end 10.000 m3) - Konstruktioner","m³",75,0,null,null,0,""]
["Forsinkelsesbassiner, lukkede (større end 10.000 m3) - Mek/EL","m³",20,0,null,null,0,""]
["Forsinkelsesbassiner, lukkede (større end 10.000 m3) - SRO","m³",10,0,null,null,0,""]
["Forsinkelsesbassiner - City",null,null,null,null,null,"",""]
["Forsinkelsesbassiner, lukkede uden automatisk rensning og SRO (mindre end 1.000 m3)","m³",50,0,null,null,0,""]
["Forsinkelsesbassiner, lukkede med automatisk rensning og SRO (mindre end 1.000 m3) - Konstruktioner","m³",75,0,null,null,0,""]
["Forsinkelsesbassiner, lukkede med automatisk rensning og SRO (mindre end 1.000 m3) - Mek/EL","m³",20,0,null,null,0,""]
["Forsinkelsesbassiner, lukkede med automatisk rensning og SRO (mindre end 1.000 m3) - SRO ","m³",10,0,null,null,0,""]
["Forsinkelsesbassiner, lukkede (1.000-4.000 m3) - Konstruktioner","m³",75,0,null,null,0,""]
["Forsinkelsesbassiner, lukkede (1.000-4.000 m3) - Mek/EL","m³",20,0,null,null,0,""]
["Forsinkelsesbassiner, lukkede (1.000-4.000 m3) - SRO","m³",10,0,null,null,0,""]
["Forsinkelsesbassiner, lukkede (4.000-10.000 m3) - Konstruktioner","m³",75,0,null,null,0,""]
["Forsinkelsesbassiner, lukkede (4.000-10.000 m3) - Mek/EL","m³",20,0,null,null,0,""]
["Forsinkelsesbassiner, lukkede (4.000-10.000 m3) - SRO","m³",10,0,null,null,0,""]
["Forsinkelsesbassiner, lukkede (større end 10.000 m3) - Konstruktioner","m³",75,0,null,null,0,""]
["Forsinkelsesbassiner, lukkede (større end 10.000 m3) - Mek/EL","m³",20,0,null,null,0,""]
["Forsinkelsesbassiner, lukkede (større end 10.000 m3) - SRO","m³",10,0,null,null,0,""]
["Forsinkelsesbassiner - Indre city",null,null,null,null,null,"",""]
["Forsinkelsesbassiner, lukkede uden automatisk rensning og SRO (mindre end 1.000 m3)","m³",50,0,null,null,0,""]
["Forsinkelsesbassiner, lukkede med automatisk rensning og SRO (mindre end 1.000 m3) - Konstruktioner","m³",75,0,null,null,0,""]
["Forsinkelsesbassiner, lukkede med automatisk rensning og SRO (mindre end 1.000 m3) - Mek/EL","m³",20,0,null,null,0,""]
["Forsinkelsesbassiner, lukkede med automatisk rensning og SRO (mindre end 1.000 m3) - SRO ","m³",10,0,null,null,0,""]
["Forsinkelsesbassiner, lukkede (1.000-4.000 m3) - Konstruktioner","m³",75,0,null,null,0,""]
["Forsinkelsesbassiner, lukkede (1.000-4.000 m3) - Mek/EL","m³",20,0,null,null,0,""]
["Forsinkelsesbassiner, lukkede (1.000-4.000 m3) - SRO","m³",10,0,null,null,0,""]
["Forsinkelsesbassiner, lukkede (4.000-10.000 m3) - Konstruktioner","m³",75,0,null,null,0,""]
["Forsinkelsesbassiner, lukkede (4.000-10.000 m3) - Mek/EL","m³",20,0,null,null,0,""]
["Forsinkelsesbassiner, lukkede (4.000-10.000 m3) - SRO","m³",10,0,null,null,0,""]
["Forsinkelsesbassiner, lukkede (større end 10.000 m3) - Konstruktioner","m³",75,0,null,null,0,""]
["Forsinkelsesbassiner, lukkede (større end 10.000 m3) - Mek/EL","m³",20,0,null,null,0,""]
["Forsinkelsesbassiner, lukkede (større end 10.000 m3) - SRO","m³",10,0,null,null,0,""]
["Sparebassin/Laguner/Jordbassiner - Land",null,null,null,null,null,"",""]
["Jordbassin Klasse A og B","m³",50,109702,129493,129493,0.18040692056662594,0,"Nye bassiner"]
["Indløb-/udløbsarrangement","stk.",75,126,{"$f":"F305","v":136},{"$f":"D305+10","v":136},7.9365079365079361E-2,{"$f":"IF(E305=\"\",IF(F305>0,\"Ny data\",IF(F305=\"\",\"\",0)),IF(E305=0,IF(F305=0,0,\"Ny data\"),(F305-E305)/E305))","v":0}]
["Andre bygninger (tekniske installationer, målere mv.)","m2",75,64,64,64,0,{"$f":"IF(E306=\"\",IF(F306>0,\"Ny data\",IF(F306=\"\",\"\",0)),IF(E306=0,IF(F306=0,0,\"Ny data\"),(F306-E306)/E306))","v":0}]
["Sparebassin/Laguner/Jordbassiner - By",null,null,null,null,null,"",{"$f":"IF(E307=\"\",IF(F307>0,\"Ny data\",IF(F307=\"\",\"\",0)),IF(E307=0,IF(F307=0,0,\"Ny data\"),(F307-E307)/E307))","v":""}]
["Jordbassin Klasse A og B","m³",50,161568,{"$f":"F308-1770-1540-334-2051-2000","v":188171},195866,0.16465512972865914,4.0893655239117609E-2,"Nye bassiner"]
["Indløb-/udløbsarrangement","stk.",75,184,{"$f":"F309-10","v":196},{"$f":"D309+10+12","v":206},6.5217391304347824E-2,5.1020408163265307E-2]
["Andre bygninger (tekniske installationer, målere mv.)","m2",75,96,112,112,0.16666666666666666,0]
["Sparebassin/Laguner/Jordbassiner - City",null,null,null,null,null,"",""]
["Jordbassin Klasse A og B","m³",50,0,null,null,0,{"$f":"IF(E312=\"\",IF(F312>0,\"Ny data\",IF(F312=\"\",\"\",0)),IF(E312=0,IF(F312=0,0,\"Ny data\"),(F312-E312)/E312))","v":""}]
["Indløb-/udløbsarrangement","stk.",75,0,null,null,0,{"$f":"IF(E313=\"\",IF(F313>0,\"Ny data\",IF(F313=\"\",\"\",0)),IF(E313=0,IF(F313=0,0,\"Ny data\"),(F313-E313)/E313))","v":""}]
["Andre bygninger (tekniske installationer, målere mv.)","m2",75,0,null,null,0,""]
["Sparebassin/Laguner/Jordbassiner - Indre city",null,null,null,null,null,"",""]
["Jordbassin Klasse A og B","m³",50,0,null,null,0,""]
["Indløb-/udløbsarrangement","stk.",75,0,null,null,0,""]
["Andre bygninger (tekniske installationer, målere mv.)","m2",75,0,null,null,0,""]

{"sheet":"Fællesfunktionsanlæg","index":2,"n_rows":13,"n_cols":9,"rows_kept":13,"cut":false,"hidden":false,"merged":[[0,0,1,0],[0,1,1,1],[0,2,1,2],[0,3,1,3],[0,8,1,8],[0,4,1,4],[0,5,1,5],[0,6,1,6],[0,7,1,7]]}
["Fællesfunktionsanlæg","Enhed","Standard-levetid","Samlet mængde per 31/12-2022","Samlet mængde per 31/12-2023","Samlet mængde per 31/12-2024","Afvigelse 2022-2023","Afvigelse 2023-2024","Bemærkninger"]
[]
["Andre",null,null,null,null,null,{"$f":"IF(D3=\"\",IF(E3>0,\"Ny data\",IF(E3=\"\",\"\",0)),IF(D3=0,IF(E3=0,0,\"Ny data\"),(E3-D3)/D3))","v":""},{"$f":"IF(E3=\"\",IF(F3>0,\"Ny data\",IF(F3=\"\",\"\",0)),IF(E3=0,IF(F3=0,0,\"Ny data\"),(F3-E3)/E3))","v":""}]
["Administrationbygninger","m2",75,685,685,685,0,0]
["Arbejdsplads og kontor","stk.",5,10,10,10,0,0]
["Køretøjer, personbil","stk.",5,0,0,0,0,0]
["Køretøjer, små lastvogne (< 3.500 kg.)","stk.",5,10,10,10,0,0]
["Køretøjer, store lastvogne (> 3.500 kg.)","stk.",5,0,0,0,0,0]
["Køretøjer, entreprenørmaskiner","stk.",5,2,2,2,0,0]
["Slamsugere","stk.",5,0,0,0,0,0]
["Værksteder, garager","m2",75,445,445,445,0,0]
["Solcelleanlæg eksl. Inverter","kWp",25,0,0,0,0,0]
["Inverter til solcelleanlæg","kWp",10,0,0,0,0,0]